Cogmind - Beta 14 @@@ ROGUE MODE // 2025.03.05 @ 23:09:19 Player: Skergy Result: Destroyed by OM-4GY(R) with Subdweller Machine Gun Performance ------------- Evolutions (0) 0 Regions Visited (2) 400 Robots Destroyed (35) 175 Value Destroyed (678) 678 Prototype IDs (2) 40 Alien Tech Used (0) 0 Bonus (0) 0 TOTAL SCORE: 1293 Bonus ------- None Cogmind --------- Core Integrity 0/250 Matter 155/300 Energy 220/250 System Corruption 0% Temperature Cool (0) Movement Treading (320) Ox2 Location -10/Subcaves Parts ------- > --- POWER (1) -------- Ion Engine > --- PROPULSION (2) --- Light Treads Light Treads > --- UTILITY (2) ------ Huge Storage Unit Core Shielding > --- WEAPON (2) ------- Assault Rifle Light Cannon > --- INVENTORY (25) --- Ion Engine Light Ion Engine Light Treads Aluminum Leg Aluminum Leg Aluminum Leg Aluminum Leg High-capacity Storage Unit High-capacity Matter Pod (200) Structural Scanner Structural Scanner Signal Interpreter Hacking Suite Medium Laser Beam Cannon Light Cannon Light Cannon Grenade Launcher Datajack Datajack Mining Laser Peak State ------------ > --- POWER ------------ Ion Engine > --- PROPULSION ------- Wheel Compact Wheel > --- UTILITY ---------- High-capacity Storage Unit Hacking Suite > --- WEAPON ----------- Assault Rifle Assault Rifle > --- INVENTORY -------- Light Ion Engine Light Ion Engine Light Treads Light Treads Light Treads Light Treads Light Treads Aluminum Leg Aluminum Leg High-capacity Matter Pod Structural Scanner Structural Scanner Core Shielding Hacking Suite Medium Laser Light Cannon Grenade Launcher Datajack [Rating: 11] Favorites ----------- Power Light Ion Engine Engine Light Ion Engine Propulsion Light Treads Treads Light Treads Wheel Compact Wheel Utility Hacking Suite Storage Huge Storage Unit Hackware Hacking Suite Protection Core Shielding Weapon Light Cannon Energy Gun EM Pulse Gun Ballistic Gun Assault Rifle Ballistic Cannon Light Cannon Special Weapon Mining Laser Special Melee Weapon Datajack Build | -11 -10 -10 ------- Run | Yrd Mat Sub Slots Evolved . | . . . Power . | . . . Propulsion . | . . . Utility . | . . . Weapon . | . . . Parts Attached 31 | 6 17 8 Power 6 | 1 4 1 Engine 6 | 1 4 1 Core . | . . . Reactor . | . . . Propulsion 6 | 2 2 2 Treads 4 | . 2 2 Leg . | . . . Wheel 2 | 2 . . Hover . | . . . Flight . | . . . Utility 5 | 1 3 1 Device . | . . . Storage 3 | 1 2 . Processor . | . . . Hackware 1 | . 1 . Protection 1 | . . 1 Artifact . | . . . Weapon 14 | 2 8 4 Energy Gun 2 | 1 1 . Energy Cannon . | . . . Ballistic Gun 4 | 1 2 1 Ballistic Cannon 5 | . 4 1 Launcher . | . . . Special Weapon 1 | . . 1 Impact Weapon . | . . . Slashing Weapon . | . . . Piercing Weapon . | . . . Special Melee Weapon 2 | . 1 1 Unidentified Prototypes . | . . . Parts Lost 8 | . 5 3 Power 2 | . 1 1 Propulsion 4 | . 2 2 Utility . | . . . Weapon 2 | . 2 . Highest Loss Streak 4 | . 4 2 To Critical Strikes . | . . . Average Slot Usage (%) 99 | . 99 98 Engine 13 | . 13 12 Treads 23 | . 23 27 Wheel 3 | . 4 . Storage 14 | . 14 14 Hackware 12 | . 13 3 Protection 1 | . . 10 Ballistic Gun 3 | . 3 1 Ballistic Cannon 22 | . 22 23 Peak Build Rating 11 | 6 11 11 Average Rating 10 | 4 10 9 On Entrance 5 | . 6 11 Naked Turns . | . . . Heaviest Build 92 | 11 89 92 Greatest Support 40 | 26 40 40 Greatest Overweight (x) 2 | . 2 2 Average Overweight (x) 1 | . 1 2 Largest Inventory Capacity 25 | 8 25 25 Average Capacity 23 | 7 23 25 Most Carried 25 | 6 25 25 Average Carried 21 | 3 21 23 Final Capacity 25 | 8 25 25 Final Carried 25 | 6 25 21 Class Distribution -------------------- 100% | Mutant Dominant Class ---------------- Mutant | -10/Materials Mutant | -10/Subcaves Resources | -11 -10 -10 ----------- Run | Yrd Mat Sub Matter Collected 984 | 243 722 19 Remotely . | . . . Salvage Created 966 | . 885 81 Parts 66 | . 61 5 Haulers Intercepted 1 | . 1 . Recyclers Shooed 4 | . 4 . Parts Field Recycled . | . . . Retrieved Matter . | . . . Parts Self-Destructed 9 | . . 9 Prevented . | . . . Kills | -11 -10 -10 ------- Run | Yrd Mat Sub Combat Hostiles Destroyed 22 | . 17 5 Guns 13 | . 12 1 Cannons 9 | . 5 4 Classes Destroyed 9 | . 7 2 Worker 2 | . 2 . Hauler 1 | . 1 . Recycler 4 | . 4 . Operator 2 | . 2 . Turret 1 | . . 1 Watcher 3 | . 3 . Swarmer 10 | . 6 4 Grunt 11 | . 11 . Subdweller 1 | . . 1 Best Kill Streak 5 | . 5 4 Combat Bots Only 4 | . 4 4 Max Kills in Single Turn 2 | . 2 2 Gunslinging 1 | . 1 . Exploded . | . . . Melee . | . . . Uniques/NPCs Destroyed . | . . . Combat | -11 -10 -10 -------- Run | Yrd Mat Sub Hostile Shots Fired 188 | . 123 65 Missed 68 | . 42 26 Damage Taken 1270 | . 908 362 Core 254 | . 179 75 Absorbed by Shields . | . . . Redirected to Shielding 3 | . . 3 Core Remaining (%) 100 | 100 . . Volleys Fired 104 | . 85 19 Largest 2 | . 2 2 Hottest 100 | . 70 100 Shots Fired 186 | . 160 26 Gun 108 | . 105 3 Cannon 69 | . 55 14 Launcher . | . . . Special 9 | . . 9 Kinetic 149 | . 132 17 Thermal 18 | . 9 9 Explosive . | . . . Electromagnetic 19 | . 19 . Robot Hit Streak 6 | . 6 6 Robot Miss Streak 4 | . 4 3 Penetration Max . | . . . Secondary Targets 2 | . 2 . Max Gunslinging Chain 1 | . 1 . Shots Hit Robots 94 | . 84 10 Core Hits 44 | . 37 7 Critical Kills . | . . . Critical Parts Destroyed . | . . . Critical Strikes 2 | . 2 . Burn 1 | . 1 . Blast 1 | . 1 . Melee Attacks . | . . . Impact . | . . . Slashing . | . . . Piercing . | . . . Sneak Attacks . | . . . Combat Hostiles . | . . . Follow-up Attacks . | . . . Damage Inflicted 1409 | . 1215 194 Guns 724 | . 699 25 Cannons 681 | . 512 169 Explosions . | . . . Melee . | . . . Ramming 4 | . 4 . Kinetic 1171 | . 977 194 Thermal 75 | . 75 . Explosive . | . . . Electromagnetic 159 | . 159 . Impact . | . . . Slashing . | . . . Piercing . | . . . Highest Corruption . | . . . Average Corruption . | . . . Corruption Purged . | . . . Corruption Blocked . | . . . Overload Shots . | . . . Overflow Damage 13 | . 13 . Projectiles 13 | . 13 . Explosions . | . . . Melee . | . . . Knockbacks 7 | . 6 1 Impact . | . . . Kinetic 7 | . 6 1 Secondary . | . . . Self-Inflicted Damage . | . . . Shots . | . . . Rammed . | . . . Targets Rammed 1 | . 1 . Kicked . | . . . Crushed 1 | . 1 . Highest Temperature 130 | . 130 . Average Temperature 33 | . 33 . Received Heat Transfer 549 | . 429 120 Siege Activations . | . . . Robots Corrupted . | . . . Combat Hostiles . | . . . Parts Fried . | . . . Impact Corruptions . | . . . Robots Melted . | . . . Combat Hostiles . | . . . Parts Melted 1 | . 1 . Heat Transferred 296 | . 296 . Parts Sabotaged . | . . . Parts Stolen . | . . . Parts Stripped . | . . . Power Chain Reactions . | . . . Alert | -11 -10 -10 ------- Run | Yrd Mat Sub Peak Influence 316 | . 316 . Initial . | . . . Average 50 | . 50 . Maximum Alert Level 1 | . 1 . Low Security (%) 93 | 100 93 . Level 1 6 | . 6 . Level 2 . | . . . Level 3 . | . . . Level 4 . | . . . Level 5 . | . . . High Security . | . . . Max Security . | . . . Squads Dispatched 3 | . 3 . Investigation 1 | . 1 . Extermination . | . . . Reinforcement 2 | . 2 . Assault . | . . . Garrison . | . . . Intercept . | . . . Searches Triggered . | . . . Construction Impeded . | . . . Haulers Reinforced . | . . . Active Scanning Responses . | . . . Cargo Convoy Interrupts . | . . . Stealth | -11 -10 -10 --------- Run | Yrd Mat Sub Distress Signals 1 | . 1 . Communications Jammed . | . . . Distress Signals . | . . . Times Spotted 33 | . 23 10 Peak Tracking Total 6 | . 4 6 Tactical Retreats 3 | . . 3 Traps | -11 -10 -10 ------- Run | Yrd Mat Sub Traps Triggered 1 | . 1 . Indirectly . | . . . Trap Hack Attempts 49 | . 49 . Triggered . | . . . Disarmed . | . . . Reprogrammed 6 | . 6 . Reused 1 | . 1 . Traps Extracted . | . . . Installed . | . . . Triggered 1 | . 1 . Machines | -11 -10 -10 ---------- Run | Yrd Mat Sub Machines Disabled 1 | . . 1 Max in Single Turn 1 | . . 1 Machines Repaired . | . . . Machines Dismantled . | . . . Machines Sabotaged . | . . . Overloaded Fab Kills . | . . . Hacking | -11 -10 -10 --------- Run | Yrd Mat Sub Machines Accessed 6 | . 6 . Terminals 5 | . 5 . Fabricators . | . . . Repair Stations . | . . . Recycling Units 1 | . 1 . Scanalyzers . | . . . Garrison Access . | . . . Total Hacks 23 | . 23 . Successful 16 | . 16 . Failed 7 | . 7 . Catastrophic . | . . . Database Lockouts . | . . . Manual 15 | . 15 . Terminals 21 | . 21 . Fabricators . | . . . Repair Stations . | . . . Recycling Units 2 | . 2 . Scanalyzers . | . . . Garrison Access . | . . . Terminal Hacks 8 | . 8 . Prototype ID Bank 1 | . 1 . Alert Level 1 | . 1 . Unreport Threat 2 | . 2 . Locate Traps 1 | . 1 . Surveillance Status 1 | . 1 . Recall Reinforcements 1 | . 1 . Zone Layout 1 | . 1 . Fabricator Hacks . | . . . Repair Station Hacks . | . . . Recycling Unit Hacks 1 | . 1 . Retrieve Matter 1 | . 1 . Scanalyzer . | . . . Garrison Access Hacks . | . . . Unauthorized Hacks 7 | . 7 . Terminals 6 | . 6 . Assimilate 1 | . 1 . Botnet 5 | . 5 . Fabricators . | . . . Repair Stations . | . . . Recycling Units 1 | . 1 . Reject 1 | . 1 . Scanalyzers . | . . . Garrison Access . | . . . Data Cores Recovered . | . . . Used . | . . . Hacking Detections 6 | . 6 . Full Trace Events . | . . . Feedback Events . | . . . Feedback Blocked . | . . . Robot Schematics Acquired . | . . . Robots Built . | . . . Authchips . | . . . Time . | . . . Total Robot Build Rating . | . . . Part Schematics Acquired . | . . . Parts Built . | . . . Authchips . | . . . Time . | . . . Total Part Build Rating . | . . . Parts Repaired . | . . . Time . | . . . Parts Recycled . | . . . Recycled Matter . | . . . Retrieved Matter 3 | . 3 . Retrieved Components . | . . . Parts Scanalyzed . | . . . Part Schematics Acquired . | . . . Parts Damaged . | . . . Bothacking | -11 -10 -10 ------------ Run | Yrd Mat Sub Used RIF Installer . | . . . Robots Hacked . | . . . Non-combat . | . . . Combat . | . . . Robot Hacks Applied . | . . . Relay Couplers Released . | . . . Fabnet Peak Effective % . | . . . Robots Rewired . | . . . Allies Hacked . | . . . Hacks Repelled . | . . . Allies | -11 -10 -10 -------- Run | Yrd Mat Sub Total Allies . | . . . Largest Group . | . . . Highest-Rated Group . | . . . Highest-Rated Ally . | . . . Total Orders . | . . . Ally Attacks . | . . . Total Damage . | . . . Kills . | . . . Allies Corrupted . | . . . Allies Melted . | . . . Intel | -11 -10 -10 ------- Run | Yrd Mat Sub Robot Analysis Total . | . . . Derelict Logs Recovered . | . . . Drone Launches . | . . . Drone Recoveries . | . . . Exploration | -11 -10 -10 ------------- Run | Yrd Mat Sub Turns Passed 3821 | 49 3328 444 Spaces Moved 1024 | 40 868 116 Core 2 | 2 . . Treads 634 | . 518 116 Legs . | . . . Wheels 388 | 38 350 . Hover . | . . . Flight . | . . . Fastest Speed 50 | 50 90 320 Average Speed 230 | 86 225 320 Slowest Speed 320 | 90 320 320 Overloaded Moves . | . . . Propulsion Burnouts . | . . . Robots Hopped . | . . . Cave-ins Triggered . | . . . Exploration Rate (%) 39 | 4 97 18 Regions Visited 2 Branch Regions 1 Pre-discovered Areas . | . . . Known Exits Taken . | . . . Unknown Exits Taken 2 | 1 1 . Scrap Searched . | . . . Spaces Dug . | . . . Terrain Destroyed . | . . . Melee . | . . . Projectile . | . . . AOE . | . . . Terrain Rammed . | . . . Walls Destroyed . | . . . Machines Disabled . | . . . Actions | -11 -10 -10 --------- Run | Yrd Mat Sub Total 2281 | 51 2086 144 Wait 1027 | . 1027 . Move 1022 | 39 867 116 Hop . | . . . Pick Up 34 | 6 28 . Fast Attach 8 | 6 2 . Attach 9 | . 5 4 Detach 1 | . . 1 Swap 14 | . 10 4 Drop 12 | . 12 . Fire 104 | . 85 19 Melee . | . . . Ram . | . . . Kick . | . . . Crush 1 | . 1 . Escape Stasis . | . . . Rewire . | . . . Trap 49 | . 49 . Miscellaneous . | . . . Route ------- -11/Scrapyard -10/Materials (discovered 6 exits: [*Mat x3] / [*Min x2] / [*Sub]) -10/Subcaves (discovered 1 exit: [*Rec]) History --------- Turn | Location | Event 10 | -11/Scrapyard | Discovered new exit (range 15) 50 | -11/Scrapyard | Entered Materials 60 | -10/Materials | Discovered new exit (range 6) 225 | -10/Materials | Discovered new exit (range 16) 303 | -10/Materials | Build established: Mutant 633 | -10/Materials | Lost 4 parts (1p2n1w) 713 | -10/Materials | Discovered new exit (range 7) 1096 | -10/Materials | Discovered new exit (range 16) 1374 | -10/Materials | Discovered new exit (range 11) 2160 | -10/Materials | Core integrity fell below 50% 3362 | -10/Materials | Discovered new exit (range 5) 3378 | -10/Materials | Entered Subcaves 3444 | -10/Subcaves | Discovered new exit (range 10) 3447 | -10/Subcaves | Core integrity fell below 20% 3822 | -10/Subcaves | Destroyed by OM-4GY(R) with Subdweller Machine Gun Last Messages --------------- 03325_ T-07 Excavator is excavating. 03337_ U-05 Engineer lays Concrete. 03362_ EXIT=FOUND 03376_ T-07 Excavator is excavating. LOCATION=UNKNOWN AMBIENT_HEAT=-10 GOAL=ESCAPE 03444_ EXIT=FOUND 03444_ Lgt. Ion Engine destroyed. 03445_ S-10 Pest springs to life. 03452_ S-10 Pest destroyed. 03461_ Acquired 9 matter. 03463_ Flight Unit fries itself beyond repair. 03464_ Acquired 10 matter. 03467_ Flight Unit fries itself beyond repair. 03479_ Autobeam Turret destroyed. 03489_ Discarded Hacking Suite. 03812_ 3X-XAJ(R) destroyed. 03818_ Subatomizers dissect the Sub. Machine Gun. 03818_ Lgt. Treads destroyed. Map ----- +----------------------------------------------------+ | ?????????????????????????????????????????????????? | | ?????????????????????????????????????????????????? | | ?????????????????????????????????????????????????? | | ?????????????????????????????????????????????????? | | ?????????????????????????????????????????????????? | | ?????????????????????????????????????????????????? | | ?????????????????????????????????????????????????? | | ?????????????????????????????????????????????????? | | ?????????????????????????????????????????????????? | | ?????????????????????????????????????????????????? | | ?????????????????????????????????????????????????? | | ?????????????????????????????????????????????????? | | ?????????????????????????????????????????????????? | | ????????????????????????????????????????????##???? | | ????????????????????????????????????????????# ##?? | | ???????????????????????????????????????????## ?? | | ???????????????????????????????????????????# "## | | ????????????????????????????????####????????# " # | | ????????????????????????????????# #???????## " | | ????????????????????????????????# ##??????# "" | | ????????????????????????????????# "##????##"""" | | ??????????????????????????###??## ""##???# " | | ?????????????????????????## #### """"##?## "" | | ????????????????????????## """ """### ###" | | ????????????????????????# " "" " #?#" | | ????????????????????????#@ "" " """ ###" | | ????????????????????????#R " """ "" " " # | | ?????????????????????# " """"" " ## | | ????????????????????? " """ "###### ###? | | ??????????????????? # "## """""""#????###??? | | ??????????????????### # "#### ###""#?????????? | | ????????????????????### # "#??###?####?????????? | | ??????????????????????# ##???????????????????? | | ??????????????????????# ????????????????????? | | ??????????????????????#& ????????????????????? | | ??????????????????????#%! #???????????????????? | | ?????????????????????? [ ##???????????????????? | | ?????????????????????? #????????????????????? | | ?????????????????????? ? ##????????????????????? | | ?????????????????????? ? #??????????????????????? | | ????????????????????? ?????????????????????????? | | ?????????????????????????????????????????????????? | | ?????????????????????????????????????????????????? | | ?????????????????????????????????????????????????? | | ?????????????????????????????????????????????????? | | ?????????????????????????????????????????????????? | | ?????????????????????????????????????????????????? | | ?????????????????????????????????????????????????? | | ?????????????????????????????????????????????????? | | ?????????????????????????????????????????????????? | +----------------------------------------------------+ Best States ------------- Heat Dissipation 25 Energy Generation 10 Energy Capacity 250 Matter Stores 300 Matter Capacity 300 Sight Range 16 Terrain Scan Density 10 Core Shielding 20 Evasion (%) 44 Recoil Reduction 2 Offensive Hacking 10 Item Schematics ----------------- None Robot Schematics ------------------ None Fabricated ------------ Nothing Alien Tech Used ----------------- None Achievements -------------- Hehehe Challenges ------------ None Game ------ Seed FlakScanBarrier Manual? 0 Play Time 00:20:13 Cumulative 60.5 hours Start 2025.03.05 @ 22:20:19 End 2025.03.05 @ 23:09:19 Sessions 3 Manual Loads 0 Difficulty Rogue Special Mode None Game No. 59 Rogue 59 Adventurer 0 Explorer 0 Win Type - Total 2 Types 2/0/0/0/0/0/0/0/0 Lore% 35 Gallery% 41 Achievement% 39 Wizard Run 0 Options --------- Layout 0 ASCII 0 Keyboard 1 Movement Numpad Keybinds 0 Fullscreen 1 Font 24/Smallcaps Map View 76x50 Zoom Use 0% Tactical HUD 1 Map Filters NONE Filters NONE Steam 1 RUN: f7606627-71fa-40eb-bcf4-1ba7de934542